bitfinex-derivatives/quotes_ETHF0:USTF0_20250730
["timestamp","ask_amount","ask_price","bid_price","bid_amount"]
[1753837996807,4.2927,3782.6,3782.5,4.9041845]
[1753837997003,1.0502,3782.6,3782.5,4.9041845]
[1753837997203,3.2802,3782.9,3782.8,4.85168]
[1753837997507,3.2802,3782.9,3782.8,5.4329645]
[1753837998809,3.2802,3782.9,3782.8,4.85168]
[1753837999009,0.54672,3783.3,3782.5,1.1777815]
[1753837999010,2.6116,3783.3,3783.2,4.3229]
[1753837999210,4.3107,3783.3,3783.2,3.543]
[1753837999411,4.3107,3783.3,3783.2,2.7543]
[1753837999612,4.3107,3783.3,3783.2,3.543]
[1753837999910,4.3107,3783.3,3783.2,4.3229]
[1753838001908,4.3107,3783.3,3783.2,2.7543]
[1753838002610,4.3107,3783.3,3783.2,3.543]
[1753838003522,4.3107,3783.3,3783.2,4.3229]
[1753838003819,4.83941,3783.3,3783.2,0.7119]
[1753838004021,4.83941,3783.3,3782.7,4.8517]
[1753838004022,2.5936,3782.8,3782.7,4.8517]
[1753838004220,3.2802,3782.8,3782.7,4.8517]
[1753838004413,1.0502,3782.8,3782.7,4.8517]
[1753838007812,2.5936,3782.8,3782.7,4.8517]
[1753838008013,1.0502,3782.8,3782.7,4.8517]
[1753838009720,1.0502,3782.8,3782.7,3.8448]
[1753838009913,1.0502,3782.8,3782.7,4.8517]
[1753838010314,0.018,3783.3,3783.2,4.85163]
[1753838010613,0.018,3783.3,3783.2,6.0294115]
[1753838013624,2.5936,3783.8,3783.7,4.85156]
[1753838013818,4.2927,3783.8,3783.7,4.85156]
[1753838014917,2.5166,3783.8,3783.7,4.85156]
[1753838015117,2.7936,3783.9,3783.8,4.3229]
[1753838015318,3.4802,3783.9,3783.8,4.3229]
[1753838015518,4.4927,3783.9,3783.8,4.3229]
[1753838016621,0.2,3783.9,3783.8,4.3229]
[1753838016819,0.52855,3784.6,3783.9,2.5755]
[1753838017024,0.52855,3784.6,3784.5,2.2404]
[1753838017025,4.82125,3784.6,3784.5,2.2404]
[1753838018028,4.82125,3784.6,3784.5,1.7188]
[1753838018222,1.7368,3784.6,3784.4,0.52856]
[1753838018426,4.2927,3784.5,3784.4,4.3229]
[1753838019127,4.2927,3784.5,3784.4,3.543]
[1753838019327,4.2927,3784.5,3784.4,4.3229]
[1753838019629,4.2927,3784.5,3784.4,3.543]
[1753838020330,4.2927,3784.5,3784.4,4.3229]
[1753838021323,0.52853,3784.7,3784.4,2.2404]
[1753838021526,2.7493,3784.8,3784.7,4.3229]
[1753838022233,4.2927,3784.8,3784.7,4.3229]
[1753838023422,2.0667,3785.0,3784.9,1.2335]
[1753838023627,4.2927,3785.0,3784.9,4.90361482]
[1753838024827,4.2404,3785.0,3784.9,4.90361482]
[1753838025223,0.58071482,3785.7,3784.9,2.37631482]
[1753838025432,0.58071482,3785.7,3785.5,1.1784]
[1753838025433,4.0973,3785.6,3785.5,1.1784]
[1753838025627,1.6612,3785.3,3785.2,2.10865482]
[1753838025937,4.0973,3785.2,3785.1,1.52795]
[1753838026232,1.6612,3784.7,3784.6,2.7026]
[1753838026429,4.0973,3784.7,3784.6,4.76901482]
[1753838026629,4.0973,3784.7,3784.6,5.29754482]
[1753838026824,4.0973,3784.7,3784.6,2.7026]
[1753838027032,4.0973,3784.7,3784.6,2.75861482]
[1753838027231,3.1115,3784.7,3784.6,4.76901482]
[1753838028032,4.0973,3784.7,3784.6,4.76901482]
[1753838029139,0.5513,3784.8,3784.7,4.71682]
[1753838029328,2.263,3784.8,3784.7,4.71059566]
[1753838029740,1.7117,3784.8,3784.7,4.71059566]
[1753838030036,2.263,3784.7,3784.6,1.30841482]
[1753838030234,2.263,3784.7,3784.6,2.30791482]
[1753838030834,2.263,3784.7,3784.6,3.48631482]
[1753838031236,3.1225,3784.7,3784.6,3.48631482]
[1753838032232,2.6076,3784.7,3784.6,4.76901482]
[1753838033031,3.1225,3784.7,3784.6,4.01101482]
[1753838033238,2.6076,3784.2,3784.1,5.29761482]
[1753838033751,6.68110451,3785.2,3785.1,1.7031]
[1753838034043,1.8848,3785.2,3785.1,4.76901482]
[1753838034339,2.6076,3785.2,3785.1,4.76901482]
[1753838036031,3.13605,3785.2,3785.1,4.76901482]
[1753838036337,2.6076,3785.2,3785.1,4.76901482]
[1753838036537,1.7117,3785.2,3785.1,4.76901482]
[1753838036733,1.5402,3785.7,3785.6,1.1818]
[1753838036944,2.6076,3785.7,3785.6,4.1883]
[1753838037741,59.7436,3786.2,3785.6,0.7277]
[1753838037941,2.1194,3785.9,3785.8,4.04131482]
[1753838038137,2.6076,3785.9,3785.8,4.76901482]
[1753838038342,2.263,3785.9,3785.8,4.76901482]
[1753838038537,38.069,3786.2,3785.8,4.76901482]
[1753838038737,1.7117,3786.1,3786.0,4.1883]
[1753838038940,2.6076,3786.1,3786.0,4.1883]
[1753838041546,0.7408,3786.3,3786.2,4.71661]
[1753838041744,0.7408,3786.3,3786.2,4.76901482]
[1753838041939,1.5402,3786.0,3785.9,2.23145]
[1753838042144,2.263,3786.0,3785.9,4.71665]
[1753838042340,1.211,3786.0,3785.9,4.71665]
[1753838042741,2.258,3786.3,3786.2,4.1883]
[1753838042942,3.1539,3786.3,3786.2,4.1883]
[1753838043446,3.1539,3786.3,3783.7,5.28227137]
[1753838043447,2.06857,3785.8,3785.7,0.9995]
[1753838043647,3.65087,3785.8,3785.7,2.2485]
[1753838043946,3.65087,3785.8,3785.7,3.4303]
[1753838044144,3.65087,3785.8,3785.7,0.7277]
[1753838044350,1.8848,3785.3,3785.2,4.1883]
[1753838044542,1.5402,3785.3,3785.2,4.1883]
[1753838044738,1.5402,3785.3,3785.2,1.249]
[1753838044944,2.7779,3785.3,3785.2,0.7277]
[1753838045147,3.1225,3785.3,3785.2,0.7277]
[1753838045347,3.1225,3785.3,3784.9,0.9995]
[1753838045348,1.01668,3785.0,3784.9,0.9995]
[1753838045649,3.13608,3785.0,3784.9,2.9056]
[1753838045949,2.6076,3785.0,3784.9,4.1883]
[1753838046952,1.5402,3784.6,3784.5,3.57035482]
[1753838047247,2.263,3784.6,3784.5,3.57035482]
[1753838047450,2.6076,3784.6,3784.5,4.56985482]
[1753838047650,2.6076,3784.6,3784.5,5.29755482]
[1753838048043,2.6076,3784.6,3784.5,4.76901482]
[1753838049247,2.6076,3784.6,3784.5,4.01101482]
[1753838049655,2.6076,3784.6,3784.5,4.76901482]
[1753838049954,0.7228,3785.2,3784.9,0.52849]
[1753838050254,2.263,3785.5,3785.4,4.1883]
[1753838051362,2.263,3785.5,3785.4,4.76901482]
[1753838051559,2.79141,3785.5,3785.4,4.76901482]
[1753838052058,3.13601,3785.5,3785.4,4.76901482]
[1753838052262,3.13605,3785.3,3785.2,2.9056]
[1753838052464,2.6076,3785.3,3785.2,3.43405]
[1753838052660,2.6076,3785.3,3785.2,3.4303]
[1753838052857,2.6076,3785.3,3785.2,4.1883]
[1753838053061,3.1225,3785.3,3785.2,2.9056]
[1753838053371,3.1225,3785.3,3785.2,0.7277]
[1753838053657,3.13608,3785.0,3784.9,2.9056]
[1753838053862,3.1467,3785.0,3784.9,2.9056]
[1753838054460,2.6076,3785.0,3784.9,3.4303]
[1753838054856,2.6076,3785.0,3784.9,3.95879]
[1753838055060,1.211,3785.0,3784.9,4.68489]
[1753838055461,0.4895,3785.2,3785.1,2.26816]
[1753838055668,1.2708,3785.2,3785.1,2.84887482]
[1753838056172,1.7685,3785.2,3785.1,2.84887482]
[1753838056362,2.7483,3785.2,3785.1,5.37727482]
[1753838056759,2.7483,3785.2,3785.1,4.84881482]
[1753838057071,1.5902,3784.9,3784.8,3.59441482]
[1753838057367,3.2874,3784.9,3784.8,3.59441482]
[1753838057967,2.7483,3784.9,3784.8,4.12271482]
[1753838058167,2.7483,3784.9,3784.8,4.84881482]
[1753838058670,2.3715,3784.9,3784.8,4.84881482]
[1753838059063,1.7685,3784.9,3784.8,4.84881482]
[1753838059872,0.4895,3784.9,3784.8,4.84881482]
[1753838060263,2.1453,3785.2,3785.1,1.7397]
[1753838060468,1.7685,3785.2,3785.1,4.84881482]
[1753838060780,1.7685,3785.2,3785.1,5.37727482]
[1753838062672,0.9872,3785.2,3785.1,1.8023]
[1753838062877,1.9382,3785.2,3785.1,4.2681]
[1753838063374,2.7195,3785.2,3785.1,4.2681]
[1753838065370,2.7195,3785.2,3785.1,3.253]
[1753838065571,3.24791,3785.5,3785.4,4.2681]
[1753838065974,8.53171645,3785.5,3785.4,4.2681]
[1753838066480,9.06241645,3785.5,3785.4,4.2681]
[1753838068178,9.06241645,3785.5,3785.4,0.7872]
[1753838069478,9.06241645,3785.5,3785.4,1.8023]
[1753838071280,2.7195,3785.0,3784.9,5.37730482]
[1753838071673,2.3537,3785.0,3784.9,5.37730482]
[1753838071977,1.7685,3785.0,3784.9,5.37730482]
[1753838074979,2.7195,3785.0,3784.9,3.7398]
[1753838075279,2.7195,3785.0,3784.9,4.2681]
[1753838076076,2.68322482,3785.0,3784.2,0.7872]
[1753838076280,1.5724,3784.3,3784.2,2.84900482]
[1753838076582,1.7685,3784.3,3784.2,2.84900482]
[1753838076973,1.2708,3784.3,3784.2,5.37740482]
[1753838077169,0.4895,3784.3,3784.2,5.37740482]
[1753838077777,0.3658,3784.5,3784.2,5.37740482]
[1753838077975,2.1343,3784.5,3784.4,1.7397]
[1753838078186,2.1343,3784.5,3784.4,4.2681]
[1753838079586,2.7195,3784.5,3784.4,4.2681]
[1753838079782,3.2502,3784.5,3784.4,3.0137]
[1753838080283,2.7195,3783.9,3783.8,3.51045741]
[1753838080481,3.83091482,3783.9,3783.8,4.29765741]
[1753838080684,3.83091482,3783.9,3783.8,0.19556801]
[1753838080890,1.79949,3783.5,3783.4,3.3148894]
[1753838081086,0.52869,3783.5,3782.8,5.27658447]
[1753838081280,1.1305,3783.0,3782.9,1.9333]
[1753838081478,0.7813,3783.1,3782.8,1.10948482]
[1753838081780,0.209509,3784.1,3783.1,3.253]
[1753838081973,2.38025482,3783.2,3783.1,0.7872]
[1753838082175,2.6127,3782.8,3782.7,3.253]
[1753838082379,0.58071482,3782.8,3782.1,4.74780447]
[1753838082685,0.7813,3782.4,3782.2,1.10958482]
[1753838082981,0.7009,3782.5,3782.4,1.9986]
[1753838082982,2.65203,3782.5,3782.4,1.9986]
[1753838083187,2.6127,3782.5,3782.4,4.2681]
[1753838083389,2.6127,3782.5,3782.4,0.7872]
[1753838083689,2.6492,3782.5,3782.4,2.3348]
[1753838083876,1.9483,3782.5,3782.4,3.0137]
[1753838084078,22.0363,3782.9,3782.8,4.2206]
[1753838084275,22.0363,3783.1,3782.9,1.7557]
[1753838084479,1.2242,3783.1,3783.0,2.9942]
[1753838084674,0.4869,3783.1,3783.0,4.2206]
[1753838084879,0.5286,3784.1,3783.3,1.7019]
[1753838085075,21.317,3784.0,3783.9,3.4383]
[1753838085288,22.5412,3784.0,3783.9,3.4383]
[1753838085486,23.2328,3784.0,3783.9,4.2206]
[1753838085682,0.4869,3784.0,3783.9,4.2206]
[1753838086484,1.8793,3784.0,3783.9,4.2206]
[1753838087497,0.7373,3784.3,3783.9,4.2206]
[1753838087788,22.5432,3784.2,3784.1,4.2206]
[1753838087993,3.1756,3784.1,3784.0,4.2206]
[1753838088289,3.1756,3784.1,3784.0,0.7285]
[1753838088682,3.75631482,3784.1,3784.0,0.7285]
[1753838089692,3.75631482,3784.1,3784.0,1.2264]
[1753838090088,3.75631482,3784.1,3784.0,0.7285]
[1753838090280,3.77911482,3784.1,3784.0,0.7285]
[1753838090778,0.7373,3784.0,3783.2,0.9734]
[1753838090987,2.647,3783.0,3782.9,4.2206]
[1753838091689,1.8793,3783.0,3782.9,4.2206]
[1753838091890,0.4869,3783.0,3782.9,4.2206]
[1753838094286,2.647,3783.0,3782.9,3.4383]
[1753838094491,2.647,3783.0,3782.9,2.4649]
[1753838094692,2.647,3783.0,3782.9,3.4383]
[1753838095193,2.647,3783.0,3782.9,4.2206]
[1753838095891,1.9158,3783.0,3782.9,4.2206]
[1753838096196,21.314,3783.1,3783.0,3.0144]
[1753838096504,23.2298,3783.1,3783.0,4.2206]
[1753838096989,1.9158,3783.1,3783.0,4.2206]
[1753838097195,1.2242,3783.1,3783.0,4.2206]
[1753838098390,1.75294,3783.1,3783.0,4.2206]
[1753838098696,1.2242,3783.1,3783.0,4.2206]
[1753838098890,1.2242,3783.1,3783.0,4.74936]
[1753838099091,1.2242,3783.1,3783.0,4.2206]
[1753838099902,21.82872,3783.3,3783.0,1.7364]
[1753838100090,23.05292,3783.3,3783.2,1.7364]
[1753838100395,23.05292,3783.3,3783.2,4.2206]
[1753838100591,0.52872,3783.3,3783.2,4.2206]
[1753838101195,1.75292,3783.3,3783.2,4.2206]
[1753838101397,21.294,3783.4,3783.3,2.4842]
[1753838101597,21.294,3783.4,3783.3,4.2206]
[1753838102593,0.4869,3783.5,3783.4,1.7672]
[1753838102894,1.2242,3783.5,3783.4,4.7493]
[1753838103288,0.4869,3783.5,3783.4,4.7493]
[1753838103486,21.298,3783.7,3783.6,4.74927]
[1753838103686,0.5286,3784.1,3783.8,1.7364]
[1753838103886,0.4869,3784.0,3783.9,4.2206]
[1753838104087,0.4869,3784.0,3783.9,5.32994482]
[1753838104294,0.7373,3784.1,3783.9,5.32994482]
[1753838104493,0.7373,3784.1,3784.0,4.2206]
[1753838105095,1.2242,3784.1,3784.0,4.2206]
[1753838105598,1.9158,3784.1,3784.0,4.2206]
[1753838105795,2.647,3784.1,3784.0,4.2206]
[1753838106800,1.2242,3784.1,3784.0,4.2206]
[1753838106997,21.295,3784.2,3784.1,2.265]
[1753838107201,38.055,3784.8,3784.4,4.2206]
[1753838107506,38.055,3784.8,3784.4,4.80131482]
[1753838107507,21.285,3784.5,3784.4,4.80131482]
[1753838107891,21.7799,3784.6,3784.5,1.55665]
[1753838108102,22.5162,3784.6,3784.5,4.74915]
[1753838108296,22.5162,3784.6,3784.5,4.2206]
[1753838109097,22.5102,3784.6,3784.5,4.2206]
[1753838110504,1.2242,3784.6,3784.5,4.2206]
[1753838110705,1.2242,3784.6,3784.5,4.80131482]
[1753838112507,22.5062,3784.6,3784.5,4.80131482]
[1753838112706,23.1613,3784.6,3784.5,4.80131482]
[1753838112911,23.929,3784.6,3784.5,4.2206]
[1753838113909,23.1613,3784.6,3784.5,4.80131482]
[1753838114110,22.5062,3784.6,3784.5,4.80131482]
[1753838114410,1.3027,3784.9,3784.8,4.2094]
[1753838114615,22.5767,3784.9,3784.8,5.31862482]
[1753838115017,24.49089,3784.9,3784.8,4.2094]
[1753838115409,24.49089,3784.9,3784.8,3.4777]
[1753838118516,23.9624,3784.9,3784.8,4.2094]
[1753838119519,23.9624,3784.9,3784.8,3.4777]
[1753838120820,23.9624,3784.9,3784.8,0.721]
[1753838121714,23.9624,3784.9,3784.8,2.2611]
[1753838122020,23.9624,3784.9,3784.8,2.9629]
[1753838124614,1.4757,3784.7,3784.0,0.721]
[1753838124822,2.6884,3784.1,3784.0,4.2094]
[1753838126018,2.6884,3784.1,3783.6,0.58071482]
[1753838126019,1.74407,3783.6,3783.5,0.5148]
[1753838126221,1.0499,3783.4,3783.1,1.0185]
[1753838126424,1.9069,3783.2,3783.1,2.7567]
[1753838126721,1.9069,3783.2,3783.1,2.4592]
[1753838126924,1.9069,3783.2,3783.1,4.2094]
[1753838127125,2.6884,3783.2,3783.1,4.2094]
[1753838127423,1.9942,3783.2,3783.1,4.2094]
[1753838128620,2.6884,3783.2,3783.1,4.2094]
[1753838129722,2.6884,3783.2,3783.1,2.2611]
[1753838129923,0.6942,3783.6,3783.2,0.52873]
[1753838130223,23.07239,3783.5,3783.4,1.7382]
[1753838130426,23.07239,3783.5,3783.4,4.2094]
[1753838130619,22.5437,3783.5,3783.4,4.2094]
[1753838131222,1.3027,3783.5,3783.4,4.2094]
[1753838131524,38.062,3784.5,3784.1,4.2094]
[1753838131525,2.6689,3784.2,3784.1,4.2094]
[1753838131724,24.4395,3784.2,3784.1,4.2094]
[1753838132722,0.5212,3784.2,3784.1,4.2094]
[1753838132924,38.062,3784.5,3784.4,4.2094]
[1753838133124,59.316,3784.5,3784.4,4.2094]
[1753838133318,60.7722,3784.5,3784.4,0.721]
[1753838133623,2.6689,3784.1,3784.0,2.7567]
[1753838134024,3.1975,3784.1,3784.0,3.4884]
[1753838134226,3.1975,3784.1,3784.0,4.2094]
[1753838134422,2.6689,3784.1,3784.0,3.4777]
[1753838135325,2.6689,3784.1,3784.0,4.2094]
[1753838138031,2.6689,3783.7,3783.6,3.4777]
[1753838139234,7.95480118,3783.7,3783.6,0.721]
[1753838141629,0.6915,3783.1,3783.0,1.9444]
[1753838141836,0.6915,3783.1,3781.9,1.32226]
[1753838141837,23.76394,3783.1,3782.6,0.52881]
[1753838142038,1.9942,3782.7,3782.6,4.01721]
[1753838142237,2.6689,3782.7,3782.6,4.01721]
[1753838142433,1.9942,3782.7,3782.6,4.73821]
[1753838142632,1.3027,3782.7,3782.6,4.73821]
[1753838142831,1.3027,3782.7,3782.6,4.2094]
[1753838143038,24.4357,3782.7,3782.6,3.4777]
[1753838143237,23.9069,3782.7,3782.6,4.2094]
[1753838144532,23.9069,3782.7,3782.0,1.0256]
[1753838144728,2.5384,3782.3,3782.2,0.724]
[1753838144935,23.7724,3782.3,3782.2,0.724]
[1753838145139,29.05969858,3782.3,3782.2,0.724]
[1753838145435,29.05969858,3782.3,3782.2,2.8766]
[1753838146834,1.17831,3781.9,3781.8,0.19567143]
[1753838147040,24.30331,3781.9,3781.8,0.19567143]
[1753838147240,29.59116775,3781.9,3781.8,0.19567143]
[1753838147440,29.59116775,3781.9,3781.8,3.07227143]
[1753838150042,29.59116775,3781.9,3781.8,0.91967143]
[1753838150337,8.35516775,3781.9,3781.8,3.07227143]
[1753838150543,21.232,3781.9,3781.8,2.33749143]
[1753838151137,21.232,3781.9,3781.8,4.80309143]
[1753838151338,21.232,3781.9,3781.8,4.27417143]
[1753838151534,21.7377,3781.9,3781.8,4.27417143]
[1753838151739,22.4632,3781.9,3781.8,4.27417143]
[1753838152340,21.232,3781.9,3781.8,4.27417143]
[1753838152943,21.237,3781.9,3781.8,2.33748143]
[1753838153350,21.237,3781.9,3781.8,1.80857143]
[1753838153648,21.7427,3781.9,3781.8,4.27417143]
[1753838153850,0.5057,3781.9,3781.8,4.27417143]
[1753838154048,21.233,3781.9,3781.8,4.27417143]
[1753838154444,0.52886,3782.3,3782.2,2.4656]
[1753838154653,21.76186,3782.3,3782.2,4.0785]
[1753838154855,27.05027704,3782.3,3782.2,4.0785]
[1753838155045,28.28147704,3782.3,3782.2,4.0785]
[1753838155346,21.7387,3782.3,3782.2,4.0785]
[1753838155550,0.5057,3782.3,3782.2,4.0785]
[1753838155754,21.7397,3782.3,3782.2,4.0785]
[1753838157251,38.8015,3782.7,3782.5,2.4656]
[1753838157458,38.8015,3782.7,3782.6,4.0785]
[1753838157754,65.32335775,3782.7,3782.6,4.0785]
[1753838158155,38.8015,3782.7,3782.6,4.60731]
[1753838158355,0.52873,3783.3,3783.2,2.3289]
[1753838158657,24.30113,3783.3,3783.2,1.127]
[1753838158953,24.30113,3783.3,3783.2,2.8766]
[1753838159753,3.06717,3782.9,3782.8,2.4656]
[1753838160055,24.30117,3782.9,3782.8,4.0785]
[1753838160656,23.64337,3782.9,3782.8,4.0785]
[1753838160853,22.99397,3782.9,3782.8,4.0785]
[1753838162254,22.4652,3782.9,3782.8,4.0785]
[1753838162956,22.4652,3782.9,3781.9,1.32228]
[1753838162957,27.90431904,3782.9,3782.2,0.724]
[1753838163156,2.5384,3781.9,3781.8,0.91967143]
[1753838163362,23.7714,3781.9,3781.8,0.91967143]
[1753838163559,1.1551,3781.6,3781.5,0.724]
[1753838163762,23.7834,3781.6,3781.5,0.724]
[1753838164152,23.7834,3781.6,3781.5,2.8766]
[1753838164457,23.7834,3781.6,3781.5,4.0785]
[1753838164953,29.65395918,3781.6,3781.5,0.724]
[1753838165354,29.65395918,3781.6,3781.1,2.236]
[1753838165656,2.5384,3781.3,3781.2,0.724]
[1753838165959,23.7874,3781.3,3781.2,3.3625]
[1753838166355,23.7874,3781.3,3781.2,4.0785]
[1753838166549,23.7874,3781.3,3781.2,3.3625]
[1753838167158,23.7874,3781.3,3781.2,4.0785]
[1753838168450,1.1551,3781.0,3780.9,0.724]
[1753838168654,1.1551,3781.0,3780.4,1.0256]
[1753838168655,2.5384,3780.5,3780.4,3.3625]
[1753838168855,23.7994,3780.5,3780.4,0.724]
[1753838169062,2.5384,3780.3,3780.2,0.74251729]
[1753838169256,23.8054,3780.3,3780.2,0.74251729]
[1753838169457,23.8054,3780.3,3780.2,1.86951729]
[1753838170761,23.8054,3780.3,3780.2,0.74251729]
[1753838174161,23.8054,3780.3,3780.2,0.01851729]
[1753838174361,1.1205,3779.9,3779.8,0.19577496]
[1753838174566,2.008,3779.5,3779.4,2.2826]
[1753838174762,24.26565,3779.5,3779.4,0.712]
[1753838174963,3.01073,3779.0,3778.9,1.1751]
[1753838175163,24.26873,3779.0,3778.9,1.1751]
[1753838175361,29.55938537,3779.0,3778.9,0.712]
[1753838175859,0.52937,3778.7,3778.5,1.7274]
[1753838176060,23.7484,3778.6,3778.5,1.6257]
[1753838176762,29.04087542,3778.6,3778.5,1.6257]
[1753838177764,0.4734,3778.1,3778.0,0.9808]
[1753838177964,22.3865,3778.1,3777.8,0.19587861]
[1753838178171,1.1205,3778.0,3777.9,2.8349]
[1753838178757,0.52947,3777.9,3777.8,0.19587861]
[1753838179064,23.7558,3777.9,3777.8,0.19587861]
[1753838179669,23.7558,3777.9,3777.8,1.82157861]
[1753838179966,2.4808,3777.9,3777.8,2.28417861]
[1753838180167,0.52935,3778.8,3778.4,1.5102]
[1753838180364,23.7548,3778.7,3778.6,1.1075]
[1753838180661,29.04881643,3778.7,3778.6,2.8349]
[1753838180970,29.04881643,3778.7,3778.6,2.0883]
[1753838181162,29.04881643,3778.7,3778.6,3.2634]
[1753838182866,28.45621643,3778.7,3778.6,4.01]
[1753838183066,5.29401643,3778.7,3778.6,4.01]
[1753838183266,1.00273,3778.9,3778.8,0.712]
[1753838183467,23.1642,3778.9,3778.8,2.2826]
[1753838183669,29.06269561,3778.9,3778.8,2.2826]
[1753838184169,29.06269561,3778.9,3778.8,4.01]
[1753838184966,29.06269561,3778.9,3778.8,0.712]
[1753838185569,30.24173346,3778.9,3778.8,0.712]
[1753838185770,1.1205,3778.5,3778.4,1.4439]
[1753838186060,2.4808,3778.4,3778.3,2.84661]
[1753838186266,2.4808,3778.4,3778.3,3.55861]
[1753838186468,2.4808,3778.4,3778.3,3.0292]
[1753838186669,2.4808,3778.4,3778.3,4.01]
[1753838187069,1.8752,3778.4,3778.3,4.01]
[1753838187472,23.1562,3778.4,3778.3,4.01]
[1753838189269,21.281,3778.4,3778.3,4.01]
[1753838191372,1.079,3779.3,3779.2,1.5706]
[1753838191577,22.9951,3779.3,3779.2,1.5706]
[1753838191781,28.28841586,3779.3,3779.2,3.2634]
[1753838191982,23.7498,3779.3,3779.2,3.2634]
[1753838192174,25.03675801,3779.3,3779.2,3.2634]
[1753838192374,29.20094331,3779.3,3779.2,4.53929]
[1753838192575,28.9725253,3779.3,3779.2,4.01]
[1753838192879,29.5781253,3779.3,3779.2,0.712]
[1753838193181,29.0488553,3779.3,3779.2,4.01]
[1753838193382,29.0488553,3779.3,3779.2,0.712]
[1753838193585,29.80730981,3779.3,3778.7,0.9808]
[1753838193782,3.01014,3778.8,3778.7,2.5514]
[1753838194087,29.5871953,3778.8,3778.7,2.0888]
[1753838194278,29.5871953,3778.8,3778.7,2.8008]
[1753838194686,29.5871953,3778.8,3778.1,3.5469]
[1753838194687,0.4734,3778.2,3778.1,3.5469]
[1753838194885,21.287,3778.2,3778.1,4.01]
[1753838195983,29.59082607,3778.2,3778.1,0.712]
[1753838196486,2.4808,3778.1,3778.0,0.00787141]
[1753838196683,3.65983785,3778.1,3778.0,0.00787141]
[1753838196879,8.95343392,3778.1,3778.0,0.00787141]
[1753838197391,8.95343392,3778.1,3778.0,0.71987141]
[1753838197779,8.95343392,3778.1,3778.0,1.18297141]
[1753838197981,27.07099607,3778.1,3778.0,4.01787141]
[1753838199092,27.83275408,3778.1,3778.0,4.01787141]
[1753838199289,28.58745408,3778.1,3778.0,4.01787141]
[1753838199489,29.81545408,3778.1,3778.0,0.71987141]
[1753838201094,29.81545408,3778.1,3778.0,0.00787141]
[1753838201691,29.81545408,3778.1,3777.1,0.9808]
[1753838201692,0.52948,3777.8,3777.1,0.9808]
[1753838201995,2.4561,3777.3,3777.2,2.174432]
[1753838202191,23.7641,3777.3,3777.2,3.281932]
[1753838202389,7.74983618,3777.3,3777.2,4.028532]
[1753838202590,29.05783618,3777.3,3777.2,4.028532]
[1753838202896,29.58738618,3777.3,3777.2,4.028532]
[1753838203495,29.58738618,3777.3,3777.2,3.281932]
[1753838204593,29.58138618,3777.3,3777.2,3.281932]
[1753838204794,30.34468338,3777.3,3777.2,3.281932]
[1753838204990,30.34468338,3777.3,3775.8,0.19598236]
[1753838204991,2.40324,3776.7,3776.6,2.5467]
[1753838205193,1.7458,3776.3,3776.2,3.2417]
[1753838205492,7.16845736,3776.3,3776.2,3.9459]
[1753838205692,7.74515736,3776.3,3776.2,3.9459]
[1753838206696,8.92419521,3776.3,3776.2,1.1879]
[1753838206901,8.92419521,3776.3,3776.2,0.7042]
[1753838207297,1.1342,3775.9,3775.8,1.60188236]
[1753838207589,7.89655951,3775.9,3775.8,2.25548236]
[1753838207795,29.20955951,3775.9,3775.8,2.74268236]
[1753838208096,29.20955951,3775.9,3775.8,3.43768236]
[1753838208296,29.73930951,3775.9,3775.8,3.43768236]
[1753838208894,29.73930951,3775.9,3775.8,2.74268236]
[1753838209095,29.73930951,3775.9,3775.8,0.67968236]
[1753838209292,29.73930951,3775.9,3775.8,0.90018236]
[1753838209696,31.01204736,3775.9,3775.8,0.19598236]
[1753838209893,1.2161,3774.7,3774.6,3.2509]
[1753838210096,21.7917,3774.7,3774.6,3.9459]
[1753838210295,28.63542058,3774.7,3774.6,3.9459]
[1753838210496,29.21212058,3774.7,3774.6,3.9459]
[1753838210694,26.61182058,3774.7,3774.6,3.9459]
[1753838213993,26.61182058,3774.7,3774.6,0.7042]
[1753838214303,29.21212058,3774.7,3774.6,3.9459]
[1753838215205,29.74205058,3774.7,3774.6,3.2509]
[1753838215405,29.74205058,3774.7,3774.6,3.9459]
[1753838216702,30.92108843,3774.7,3774.6,0.7042]
[1753838217498,30.92108843,3774.7,3774.6,1.1879]
[1753838218203,28.63742058,3774.7,3774.6,3.9459]
[1753838218605,29.16734058,3774.7,3774.6,3.9459]
[1753838218907,29.74404058,3774.7,3774.6,3.9459]
[1753838220304,26.61382058,3774.7,3774.6,4.47583]
[1753838220495,26.61382058,3774.7,3774.6,3.9459]
[1753838221296,7.89712058,3774.7,3774.6,3.9459]
[1753838221498,5.29682058,3774.7,3774.6,3.9459]
[1753838221696,1.2161,3775.7,3775.6,1.1408]
[1753838221904,1.2161,3775.7,3775.6,1.6245]
[1753838221905,22.08700118,3775.7,3775.6,1.6245]
[1753838222103,26.62750449,3775.7,3775.6,1.6245]
[1753838222303,23.9293,3775.7,3775.6,3.2509]
[1753838222505,1.1342,3775.2,3775.1,1.18346]
[1753838222807,29.22680449,3775.2,3775.1,0.4837]
[1753838223004,0.7394,3774.9,3774.4,0.9222]
[1753838223198,21.331,3774.8,3774.7,3.9459]
[1753838223404,1.74593,3775.3,3775.2,3.9459]
[1753838223710,27.85190273,3775.3,3775.2,3.9459]
[1753838223910,29.23610273,3775.3,3775.2,3.2509]
[1753838224201,29.23610273,3775.3,3775.2,1.1879]
[1753838224398,29.23610273,3775.3,3775.2,2.7637]
[1753838224602,29.23610273,3775.3,3775.2,3.2509]
[1753838226712,27.27350273,3775.3,3775.2,3.9459]
[1753838227313,21.5,3775.3,3775.2,3.9459]
[1753838228009,21.509,3775.3,3775.2,3.9459]
[1753838228409,0.0937,3775.8,3775.7,2.758]
[1753838228611,21.4527,3775.8,3775.7,3.28778]